bitfinex/quotes_BTCUSD_20251016
["timestamp","ask_amount","ask_price","bid_price","bid_amount"]
[1760655140329,0.18489414,108170.0,108150.0,0.59231305]
[1760655140586,0.0278035,108160.0,108150.0,0.59231305]
[1760655144922,0.21271474,108160.0,108150.0,0.59231305]
[1760655148164,0.21271474,108160.0,108150.0,0.18543115]
[1760655148403,0.21271474,108160.0,108150.0,0.59231305]
[1760655150194,0.21271474,108160.0,108150.0,0.00050281]
[1760655150195,0.70004575,108160.0,108150.0,0.00050281]
[1760655150436,0.70928676,108160.0,108150.0,0.00050281]
[1760655150669,1.11616866,108160.0,108150.0,0.00050281]
[1760655150892,1.13613657,108160.0,108150.0,0.00050281]
[1760655151120,1.47613657,108160.0,108150.0,0.00050281]
[1760655151606,6.47613657,108160.0,108150.0,0.00050281]
[1760655151840,6.47713657,108160.0,108150.0,0.00050281]
[1760655152299,6.47613657,108160.0,108150.0,0.00050281]
[1760655152762,5.66237277,108160.0,108150.0,0.00050281]
[1760655152994,6.47613657,108160.0,108150.0,0.00050281]
[1760655153528,6.47713657,108160.0,108150.0,0.00050281]
[1760655158489,5.66337277,108160.0,108150.0,0.00050281]
[1760655158695,6.47713657,108160.0,108150.0,0.00050281]
[1760655160839,6.56681865,108160.0,108150.0,0.00050281]
[1760655160993,6.97370055,108160.0,108150.0,0.00050281]
[1760655163327,7.00700789,108160.0,108150.0,0.00050281]
[1760655163556,6.56681865,108160.0,108150.0,0.00050281]
[1760655164479,6.60012599,108160.0,108150.0,0.00050281]
[1760655167302,0.18496254,108130.0,108120.0,0.21262519]
[1760655167515,0.18496254,108130.0,108120.0,0.21267539]
[1760655167956,0.18496254,108130.0,108120.0,0.19427866]
[1760655168165,0.21277607,108130.0,108120.0,0.19427866]
[1760655169981,0.21277607,108130.0,108120.0,0.00929918]
[1760655170929,0.21277607,108130.0,108120.0,0.19427883]
[1760655173660,0.21277607,108130.0,108120.0,5.02e-05]
[1760655175908,0.21277607,108130.0,108120.0,0.18502985]
[1760655176679,0.2267613,108130.0,108120.0,5.02e-05]
[1760655176962,0.2267613,108130.0,108120.0,0.18502985]
[1760655177780,0.2267613,108130.0,108120.0,5.02e-05]
[1760655178192,0.80719054,108130.0,108120.0,5.02e-05]
[1760655178400,0.82715845,108130.0,108120.0,5.02e-05]
[1760655179248,0.74330123,108130.0,108120.0,5.02e-05]
[1760655180276,0.3224341,108130.0,108120.0,5.02e-05]
[1760655180674,0.729316,108130.0,108120.0,5.02e-05]
[1760655181233,0.3224341,108130.0,108120.0,5.02e-05]
[1760655181689,0.729316,108130.0,108120.0,5.02e-05]
[1760655182090,0.3224341,108130.0,108120.0,5.02e-05]
[1760655186393,0.13747156,108130.0,108120.0,0.59191175]
[1760655186606,0.3224341,108130.0,108120.0,0.18502985]
[1760655186837,0.3224341,108130.0,108120.0,5.02e-05]
[1760655187001,0.3224341,108130.0,108120.0,0.59191175]
[1760655187232,0.3224341,108130.0,108120.0,5.02e-05]
[1760655187768,0.729316,108130.0,108120.0,5.02e-05]
[1760655188822,0.18497965,108120.0,108110.0,0.18499425]
[1760655189042,0.20494756,108120.0,108100.0,0.60113696]
[1760655189249,0.20494756,108120.0,108110.0,0.18499676]
[1760655190886,0.20494756,108120.0,108110.0,0.18599676]
[1760655191320,0.20494756,108120.0,108110.0,0.59287866]
[1760655192373,0.20494756,108120.0,108110.0,0.18599676]
[1760655192600,0.20494756,108120.0,108110.0,0.59287866]
[1760655192804,0.23276251,108120.0,108110.0,0.59287866]
[1760655193198,0.2127946,108120.0,108110.0,0.59287866]
[1760655193442,0.02781495,108120.0,108110.0,0.59287866]
[1760655193781,0.2127946,108120.0,108110.0,0.59287866]
[1760655193986,0.02781495,108120.0,108110.0,0.59287866]
[1760655194693,0.2127946,108120.0,108110.0,0.59287866]
[1760655195075,0.02781495,108120.0,108110.0,0.59287866]
[1760655195650,0.22816796,108140.0,108120.0,0.18497965]
[1760655195862,0.31795099,108140.0,108130.0,0.4068819]
[1760655196484,0.13759481,108140.0,108130.0,0.59184444]
[1760655196687,0.04790469,108140.0,108130.0,0.59184444]
[1760655196916,0.21285116,108140.0,108130.0,0.59184444]
[1760655197535,0.21285116,108140.0,108130.0,0.18496254]
[1760655198913,0.02790572,108140.0,108130.0,0.18496254]
[1760655199633,0.02790572,108140.0,108130.0,0.93201027]
[1760655199634,9.291e-05,108140.0,108130.0,0.93201027]
[1760655199842,9.291e-05,108140.0,108130.0,6.05788267]
[1760655200056,9.291e-05,108140.0,108130.0,6.49661737]
[1760655200269,9.291e-05,108140.0,108130.0,6.08956964]
[1760655200709,9.291e-05,108140.0,108130.0,6.05888267]
[1760655203165,9.291e-05,108140.0,108130.0,6.08668525]
[1760655203778,0.04619931,108180.0,108170.0,0.18489414]
[1760655204034,0.01889951,108180.0,108170.0,0.59194187]
[1760655204232,0.00050278,108180.0,108170.0,0.18489414]
[1760655204475,0.00050278,108180.0,108170.0,0.59194187]
[1760655205990,0.00150278,108180.0,108170.0,0.59194187]
[1760655206128,0.00050278,108180.0,108170.0,0.62362884]
[1760655206543,0.00050278,108180.0,108170.0,0.62462884]
[1760655206946,0.00050278,108180.0,108170.0,0.75389112]
[1760655207428,0.00050278,108180.0,108170.0,0.76721916]
[1760655207840,0.00050278,108180.0,108170.0,1.10721916]
[1760655208382,0.18482588,108210.0,108200.0,0.18484288]
[1760655208588,0.30240449,108210.0,108200.0,0.18484288]
[1760655209691,0.30340441,108210.0,108200.0,0.18484288]
[1760655209891,0.30340441,108210.0,108190.0,0.18483639]
[1760655210239,0.30240441,108210.0,108190.0,0.18483639]
[1760655211049,0.30240441,108210.0,108200.0,0.18484288]
[1760655211259,0.11757861,108210.0,108200.0,0.18484288]
[1760655211470,0.30240441,108210.0,108200.0,0.18484288]
[1760655215963,0.18484288,108200.0,108190.0,0.18483639]
[1760655217022,0.30240441,108210.0,108190.0,0.18483639]
[1760655217233,0.18484288,108200.0,108190.0,0.18483639]
[1760655217598,0.30240441,108210.0,108190.0,0.18483639]
[1760655218215,0.18484288,108200.0,108190.0,0.18483639]
[1760655218624,0.30240441,108210.0,108190.0,0.18483639]
[1760655219907,0.30240441,108210.0,108200.0,0.18484288]
[1760655222098,0.30240441,108210.0,108190.0,0.18483639]
[1760655222823,0.27460889,108210.0,108190.0,0.18483639]
[1760655223653,0.02779387,108200.0,108190.0,0.18483639]
[1760655224233,0.21263675,108200.0,108190.0,0.18483639]
[1760655224860,0.02779387,108200.0,108190.0,0.18483639]
[1760655226549,0.21263675,108200.0,108190.0,0.18483639]
[1760655226748,0.02779387,108200.0,108190.0,0.18483639]
[1760655228262,0.01980812,108200.0,108190.0,0.18483639]
[1760655230724,0.1323352,108210.0,108190.0,0.18483639]
[1760655231937,0.1323352,108210.0,108200.0,0.18484288]
[1760655232347,0.1323352,108210.0,108190.0,0.18483639]
[1760655233150,0.16564254,108210.0,108190.0,0.18483639]
[1760655233361,0.18288989,108210.0,108190.0,0.18483639]
[1760655234614,0.52288989,108210.0,108200.0,0.18484288]
[1760655234956,0.57538049,108210.0,108200.0,0.18484288]
[1760655235344,0.57517191,108210.0,108200.0,0.18484288]
[1760655237667,0.39034611,108210.0,108200.0,0.18484288]
[1760655238466,0.57517191,108210.0,108200.0,0.18484288]
[1760655238883,0.23517191,108210.0,108200.0,0.18484288]
[1760655239111,0.55883555,108220.0,108210.0,0.1848258]
[1760655239311,0.57609905,108220.0,108210.0,0.1848258]
[1760655239515,0.57609905,108220.0,108200.0,0.59189061]
[1760655239764,0.1848258,108210.0,108200.0,0.18484288]
[1760655240526,0.23478222,108210.0,108200.0,0.18484288]
[1760655242261,0.04995642,108210.0,108200.0,0.18484288]
[1760655242445,0.1848258,108210.0,108200.0,0.18484288]
[1760655242647,0.1848258,108210.0,108190.0,0.60112711]
[1760655242648,0.20481145,108210.0,108190.0,0.60112711]
[1760655242844,0.25476787,108210.0,108190.0,0.19417235]
[1760655243045,0.25476787,108210.0,108200.0,0.18484288]
[1760655243531,0.25476787,108210.0,108190.0,0.60122008]
[1760655243762,0.25476787,108210.0,108200.0,0.18484288]
[1760655245184,0.20481145,108210.0,108200.0,0.18484288]
[1760655249179,0.61185918,108210.0,108190.0,0.18494782]
[1760655249330,0.20481145,108210.0,108190.0,0.18494782]
[1760655249962,0.20481145,108210.0,108200.0,0.18484288]
[1760655251795,0.18484288,108200.0,108190.0,0.18494782]
[1760655251997,0.01998565,108200.0,108190.0,0.18494782]
[1760655252636,0.20482853,108200.0,108190.0,0.18494782]
[1760655253166,0.20481145,108210.0,108200.0,0.18484288]
[1760655254067,0.18484288,108200.0,108190.0,0.18494782]
[1760655254468,0.59189061,108200.0,108190.0,9.297e-05]
[1760655254675,0.59189061,108200.0,108190.0,0.18495293]
[1760655254676,0.20482853,108200.0,108190.0,0.18495293]
[1760655254893,0.18484288,108200.0,108190.0,0.18495293]
[1760655255101,0.76125094,108200.0,108190.0,9.297e-05]
[1760655255291,1.04156638,108200.0,108190.0,9.297e-05]
[1760655257272,1.0545542,108200.0,108190.0,9.297e-05]
[1760655257500,1.0555542,108200.0,108190.0,9.297e-05]
[1760655259395,1.46209749,108200.0,108190.0,9.297e-05]
[1760655261679,1.4898961,108200.0,108190.0,9.297e-05]
[1760655262254,6.89669161,108200.0,108190.0,9.297e-05]
[1760655262916,6.94664803,108200.0,108190.0,9.297e-05]
[1760655263120,6.96386458,108200.0,108190.0,9.297e-05]
[1760655263322,6.89669161,108200.0,108190.0,9.297e-05]
[1760655263553,6.4898961,108200.0,108190.0,9.297e-05]
[1760655263688,6.51464746,108200.0,108190.0,9.297e-05]
[1760655264228,6.51564746,108200.0,108190.0,9.297e-05]
[1760655265363,6.54887065,108200.0,108190.0,9.297e-05]
[1760655267468,6.51564746,108200.0,108190.0,9.297e-05]
[1760655268302,6.92244297,108200.0,108190.0,9.297e-05]
[1760655268952,6.95566616,108200.0,108190.0,1e-08]
[1760655269164,7.02280435,108200.0,108190.0,1e-08]
[1760655272642,6.98958116,108200.0,108190.0,1e-08]
[1760655274598,7.23358116,108200.0,108190.0,1e-08]
[1760655277045,7.23358116,108200.0,108190.0,0.40679552]
[1760655277046,0.23458212,108200.0,108190.0,0.40679552]
[1760655277304,0.31631943,108200.0,108190.0,1e-08]
[1760655277510,0.72311494,108200.0,108190.0,1e-08]
[1760655277785,1.08310059,108200.0,108190.0,1e-08]
[1760655278784,1.08210059,108200.0,108190.0,1e-08]
[1760655279087,1.08310059,108200.0,108190.0,1e-08]
[1760655279503,1.57857818,108200.0,108190.0,1e-08]
[1760655279714,1.57957818,108200.0,108190.0,1e-08]
[1760655280757,1.4898961,108200.0,108190.0,1e-08]
[1760655281563,0.67630508,108200.0,108190.0,1e-08]
[1760655281767,1.08310059,108200.0,108190.0,1e-08]
[1760655282358,0.67630508,108200.0,108190.0,1e-08]
[1760655282566,1.08310059,108200.0,108190.0,1e-08]
[1760655283632,0.54582853,108200.0,108190.0,0.40679552]
[1760655283920,0.54582853,108200.0,108190.0,1e-08]
[1760655284115,0.95262404,108200.0,108190.0,1e-08]
[1760655284518,0.90262404,108200.0,108190.0,1e-08]
[1760655285358,1.39910967,108200.0,108190.0,1e-08]
[1760655285765,0.99231416,108200.0,108190.0,1e-08]
[1760655286590,1.08912402,108200.0,108190.0,1e-08]
[1760655287145,0.68232851,108200.0,108190.0,1e-08]
[1760655287764,0.66171644,108200.0,108190.0,1e-08]
[1760655288188,1.06851195,108200.0,108190.0,1e-08]
[1760655288764,1.09631017,108200.0,108190.0,1e-08]
[1760655289978,1.18599225,108200.0,108190.0,1e-08]
[1760655290387,6.09631017,108200.0,108190.0,1e-08]
[1760655291387,6.43631017,108200.0,108190.0,1e-08]
[1760655291654,6.86030763,108200.0,108190.0,1e-08]
[1760655292993,6.45351212,108200.0,108190.0,1e-08]
[1760655297560,6.86030763,108200.0,108190.0,1e-08]
[1760655297762,6.99994613,108200.0,108190.0,1e-08]
[1760655299342,7.00094613,108200.0,108190.0,1e-08]
[1760655312366,7.03712841,108200.0,108190.0,1e-08]
[1760655312774,0.52489414,108170.0,108160.0,0.01839673]
[1760655312976,1.0413312,108170.0,108160.0,0.01889951]
[1760655313329,1.0413312,108170.0,108160.0,0.00050278]
[1760655313531,1.15882132,108170.0,108160.0,0.00050278]
[1760655313732,6.47593475,108170.0,108160.0,0.00050278]
[1760655313943,6.50918714,108170.0,108160.0,0.00050278]
[1760655314157,6.93317667,108170.0,108160.0,1e-08]
[1760655314418,6.54300736,108170.0,108160.0,1e-08]
[1760655315330,6.98598515,108170.0,108160.0,1e-08]
[1760655315585,7.07566723,108170.0,108160.0,1e-08]
[1760655316474,7.07666723,108170.0,108160.0,1e-08]
[1760655316823,6.66987172,108170.0,108160.0,1e-08]
[1760655317026,6.57722744,108170.0,108160.0,1e-08]
[1760655317495,6.54400736,108170.0,108160.0,1e-08]
[1760655317698,6.57722286,108170.0,108160.0,1e-08]
[1760655318429,6.54400736,108170.0,108160.0,1e-08]
[1760655319234,6.95080287,108170.0,108160.0,1e-08]
[1760655319438,7.04048495,108170.0,108160.0,1e-08]
[1760655320667,7.05254116,108170.0,108160.0,1e-08]
[1760655321478,6.23936597,108170.0,108160.0,1e-08]
[1760655325845,6.64657731,108170.0,108160.0,1e-08]
[1760655326044,6.632881,108170.0,108160.0,1e-08]
[1760655326248,0.52496254,108130.0,108120.0,0.01839673]
[1760655326450,1.04178293,108130.0,108120.0,0.01848964]
[1760655326658,1.04178293,108130.0,108120.0,9.291e-05]
[1760655326869,1.06960185,108130.0,108120.0,9.291e-05]
[1760655329217,6.06960185,108130.0,108120.0,9.291e-05]
[1760655329449,6.1286065,108130.0,108120.0,9.291e-05]
[1760655330247,6.16180457,108130.0,108120.0,9.291e-05]
[1760655330425,6.56901591,108130.0,108120.0,9.291e-05]
[1760655330687,6.57001591,108130.0,108120.0,9.291e-05]
[1760655330880,6.63695066,108130.0,108120.0,9.291e-05]
[1760655331111,6.63993487,108130.0,108120.0,1e-08]
[1760655331291,6.59013776,108130.0,108120.0,1e-08]
[1760655331452,0.93224233,108090.0,108080.0,0.08521998]
[1760655331653,0.85682039,108090.0,108080.0,0.08535954]
[1760655331843,1.04185138,108090.0,108080.0,0.08535954]
[1760655332048,1.06968019,108090.0,108080.0,0.06696281]
[1760655332257,0.66246885,108090.0,108080.0,0.06696281]
[1760655332467,1.06968019,108090.0,108080.0,0.06696281]
[1760655333270,6.06968019,108090.0,108080.0,0.06696281]
[1760655333906,6.06968019,108090.0,108080.0,0.0725635]
[1760655335060,1.06968019,108090.0,108080.0,0.0725635]
[1760655336935,1.06968019,108090.0,108080.0,0.25761161]
[1760655336936,0.47743786,108090.0,108080.0,0.25761161]
[1760655337122,0.02782881,108090.0,108080.0,0.66482295]
[1760655339570,0.02782881,108090.0,108080.0,0.25761161]
[1760655339974,0.21413397,108110.0,108090.0,0.18501877]
[1760655340244,0.18501387,108100.0,108090.0,0.18501877]
[1760655340451,0.21283653,108100.0,108090.0,0.18501877]
[1760655340894,0.02782266,108100.0,108090.0,0.18501877]
[1760655341098,0.21283653,108100.0,108080.0,0.26686401]
[1760655341273,0.21283653,108100.0,108080.0,0.67407535]
[1760655341747,0.21283653,108100.0,108090.0,0.18503099]
[1760655342843,0.21283653,108100.0,108080.0,0.26686401]
[1760655343062,0.21283653,108100.0,108090.0,0.18503099]
[1760655343697,0.02782266,108100.0,108090.0,0.18503099]
[1760655343917,0.21283653,108100.0,108090.0,0.18503099]
[1760655345544,0.02782266,108100.0,108090.0,0.18503099]
[1760655346027,0.21283653,108100.0,108090.0,0.18503099]
[1760655346737,0.21283653,108100.0,108080.0,0.67407535]
[1760655348402,0.23269416,108100.0,108080.0,0.67407535]
[1760655348639,0.21283653,108100.0,108080.0,0.26686401]
[1760655348866,0.18501387,108100.0,108080.0,0.26686401]
[1760655349280,0.2048715,108100.0,108080.0,0.26686401]
[1760655349489,0.18501387,108100.0,108090.0,0.18503099]
[1760655350239,0.2048715,108100.0,108090.0,0.18503099]
[1760655350443,0.18501387,108100.0,108090.0,0.18503099]
[1760655351401,0.2048715,108100.0,108080.0,0.26686401]
[1760655352405,0.2048715,108100.0,108090.0,0.18503099]
[1760655352605,0.01985763,108100.0,108090.0,0.59224233]
[1760655352813,0.5849709,108110.0,108090.0,0.59224233]
[1760655352960,0.18501387,108100.0,108090.0,0.59224233]
[1760655353162,0.2048715,108100.0,108090.0,0.18503099]
[1760655355281,0.18503099,108090.0,108080.0,0.25761161]
[1760655356322,0.2048715,108100.0,108080.0,0.25761161]
[1760655356651,0.2048715,108100.0,108080.0,0.25861161]
[1760655356870,0.2048715,108100.0,108090.0,0.18503099]
[1760655358675,0.2048715,108100.0,108080.0,0.25761161]
[1760655359101,0.18503099,108090.0,108080.0,0.25760581]
[1760655359263,0.01985763,108090.0,108080.0,0.25760581]
[1760655360312,0.20488862,108090.0,108080.0,0.0725635]
[1760655360682,0.20488862,108090.0,108080.0,0.25761161]
[1760655360889,0.29457874,108090.0,108080.0,0.0725635]
[1760655361328,0.79147216,108090.0,108080.0,0.0735635]
[1760655361491,1.16465116,108090.0,108080.0,0.0725635]
[1760655361894,0.93224233,108090.0,108080.0,0.0725635]
[1760655362931,0.52503099,108090.0,108080.0,0.0725635]
[1760655363171,0.55285716,108090.0,108080.0,0.0725635]
[1760655363515,1.04975862,108090.0,108080.0,0.0725635]
[1760655363734,1.06697329,108090.0,108080.0,0.0725635]
[1760655364589,6.15665537,108090.0,108080.0,0.0725635]
[1760655364716,6.18983437,108090.0,108080.0,0.0725635]
[1760655364921,1.06697329,108090.0,108080.0,0.0725635]
[1760655368255,0.65976195,108090.0,108080.0,0.0725635]
[1760655368469,1.06697329,108090.0,108080.0,0.0725635]
[1760655370198,0.64254728,108090.0,108080.0,0.0725635]
[1760655370548,6.45696996,108090.0,108080.0,0.0725635]
[1760655370757,6.56387425,108090.0,108080.0,0.0725635]
[1760655371185,6.22387425,108090.0,108080.0,0.0725635]
[1760655371798,6.25705325,108090.0,108080.0,0.0725635]
[1760655372001,6.25805325,108090.0,108080.0,0.0725635]
[1760655372208,6.22487425,108090.0,108080.0,0.0725635]
[1760655372414,6.26105653,108090.0,108080.0,1e-08]
[1760655372639,5.22123039,108080.0,108070.0,1.46132139]
[1760655372848,6.26551483,108080.0,108070.0,1.25899538]
[1760655373057,6.60551483,108080.0,108070.0,1.25899538]
[1760655373265,6.67362954,108080.0,108070.0,0.97811097]
[1760655373477,6.57149897,108080.0,108070.0,0.97811097]
[1760655373908,6.59144117,108080.0,108070.0,0.97811097]
[1760655374118,6.55917382,108080.0,108070.0,0.97811097]
[1760655374322,6.49105911,108080.0,108070.0,0.97811097]
[1760655375170,6.52432646,108080.0,108070.0,0.97811097]
[1760655375374,6.49105911,108080.0,108070.0,0.97811097]
[1760655376223,6.49105911,108080.0,108070.0,0.52554077]
[1760655376458,7.23661857,108080.0,108070.0,0.44520587]
[1760655376862,6.52432646,108080.0,108070.0,0.44520587]
[1760655377268,6.49105911,108080.0,108070.0,0.44520587]
[1760655378824,6.49105911,108080.0,108070.0,0.02675827]
[1760655379031,6.52432646,108080.0,108070.0,0.02675827]
[1760655379356,6.49105911,108080.0,108070.0,0.02675827]
[1760655380941,6.51889982,108080.0,108070.0,0.02675827]
[1760655381568,6.73370885,108080.0,108070.0,0.02675827]
[1760655381981,6.02479808,108070.0,108060.0,0.07560615]
[1760655382158,6.24133467,108070.0,108060.0,0.07560615]
[1760655382807,6.26917592,108070.0,108060.0,0.07560615]
[1760655383559,6.27017592,108070.0,108060.0,0.07560615]
[1760655384377,6.27026876,108070.0,108060.0,0.07560615]
[1760655386606,6.18050186,108070.0,108060.0,0.07560615]
[1760655386781,6.14431958,108070.0,108060.0,0.07560615]
[1760655388332,6.17758693,108070.0,108060.0,0.07560615]
[1760655389365,6.17658693,108070.0,108060.0,0.07560615]
[1760655389683,6.17758693,108070.0,108060.0,0.07560615]
[1760655389836,6.26726901,108070.0,108060.0,0.07560615]
[1760655390587,6.3532198,108070.0,108060.0,0.07560615]
[1760655390886,6.30345129,108070.0,108060.0,0.07560615]
[1760655391874,6.31995245,108070.0,108060.0,0.07560615]
[1760655392487,6.31895245,108070.0,108060.0,0.07560615]
[1760655392797,6.31995245,108070.0,108060.0,0.07560615]
[1760655393416,6.67222638,108070.0,108060.0,0.07560615]
[1760655393619,6.62245787,108070.0,108060.0,0.07560615]
[1760655396162,6.58627559,108070.0,108060.0,0.07560615]
[1760655397171,6.58527559,108070.0,108060.0,0.07560615]
[1760655397367,6.58627559,108070.0,108060.0,0.07560615]
[1760655398059,0.15570378,108070.0,108060.0,0.66860076]
[1760655398261,0.15570378,108070.0,108060.0,0.84135789]
[1760655398262,0.08806851,108070.0,108060.0,0.84135789]
[1760655398472,0.61401252,108070.0,108060.0,0.02553339]
[1760655398677,6.06088762,108070.0,108060.0,0.02553339]
[1760655398850,6.12953466,108070.0,108060.0,0.02553339]
[1760655399245,6.16278937,108070.0,108060.0,0.02553339]
[1760655400208,6.17942886,108070.0,108060.0,0.02553339]
[1760655401611,6.58734111,108070.0,108060.0,0.02553339]
[1760655402228,6.53744501,108070.0,108060.0,0.02553339]
[1760655403191,6.56528298,108070.0,108060.0,0.02553339]
[1760655404321,6.5653221,108070.0,108060.0,0.02553339]
[1760655406010,5.65981552,108070.0,108060.0,0.02553339]
[1760655406216,6.06772777,108070.0,108060.0,0.02553339]
[1760655406493,6.47564002,108070.0,108060.0,0.02553339]
[1760655407668,6.06772777,108070.0,108060.0,0.02553339]
[1760655408918,0.18508236,108060.0,108050.0,0.00044]
[1760655409143,5.74993433,108060.0,108050.0,0.00044]
[1760655409358,5.83961641,108060.0,108050.0,0.00044]
[1760655409720,5.86745438,108060.0,108050.0,0.00044]
[1760655410079,5.87924489,108060.0,108050.0,0.00044]
[1760655410920,5.89925602,108060.0,108050.0,0.00044]
[1760655413131,5.93260989,108060.0,108050.0,0.00044]
[1760655414524,5.52469764,108060.0,108050.0,0.00044]
[1760655414672,5.93260989,108060.0,108050.0,0.00044]
[1760655415245,5.88258249,108060.0,108050.0,0.00044]
[1760655416903,5.88257616,108060.0,108050.0,0.00044]
[1760655418618,6.29048841,108060.0,108050.0,0.00044]
[1760655419092,6.34051581,108060.0,108050.0,0.00044]
[1760655419520,6.68051581,108060.0,108050.0,0.00044]
[1760655420644,6.64716194,108060.0,108050.0,0.00044]
[1760655423318,6.68051813,108060.0,108050.0,0.00044]
[1760655423788,6.64716194,108060.0,108050.0,0.00044]
[1760655424239,6.68051671,108060.0,108050.0,0.00044]
[1760655425996,5.86469221,108060.0,108050.0,0.00044]
[1760655426178,6.68051671,108060.0,108050.0,0.00044]
[1760655428057,6.77796671,108060.0,108050.0,0.00044]
[1760655428265,6.68051671,108060.0,108050.0,0.00044]
[1760655429266,6.58282754,108060.0,108050.0,0.00044]
[1760655430166,6.49314546,108060.0,108050.0,0.00044]
[1760655430337,6.08523321,108060.0,108050.0,0.00044]
[1760655430540,6.49314546,108060.0,108050.0,0.00044]
[1760655432889,6.93723999,108060.0,108050.0,0.00044]
[1760655433141,6.32661699,108050.0,108040.0,0.07778216]
[1760655433359,6.54321619,108050.0,108040.0,0.07778216]
[1760655433769,6.57657096,108050.0,108040.0,0.07778216]
[1760655433895,6.54321619,108050.0,108040.0,0.07778216]
[1760655434544,6.54320719,108050.0,108040.0,0.07778216]
[1760655436942,6.45352511,108050.0,108040.0,0.07778216]
[1760655439331,6.48687988,108050.0,108040.0,0.07778216]
[1760655441557,6.5147239,108050.0,108040.0,0.07778216]
[1760655443237,6.51470872,108050.0,108040.0,0.07778216]
[1760655443444,6.51470872,108050.0,108040.0,0.28141044]
[1760655443445,0.47753009,108050.0,108040.0,0.28141044]
[1760655443649,0.29478556,108050.0,108040.0,0.26289878]
[1760655443845,0.27478961,108050.0,108040.0,0.07778216]
[1760655444074,0.68260368,108050.0,108040.0,0.07778216]
[1760655444272,5.68829263,108050.0,108040.0,0.07778216]
[1760655444490,5.62047856,108050.0,108040.0,0.07778216]
[1760655444698,6.02829263,108050.0,108040.0,0.07778216]
[1760655444906,0.63478556,108050.0,108040.0,0.09629382]
[1760655445114,1.04259963,108050.0,108040.0,0.09629382]
[1760655445312,6.16853555,108050.0,108040.0,0.07778216]
[1760655445663,6.16853606,108050.0,108040.0,0.07778216]
[1760655449012,6.21856346,108050.0,108040.0,0.07778216]
[1760655453057,6.24640761,108050.0,108040.0,0.07778216]
[1760655455842,6.28258989,108050.0,108040.0,0.07778216]
[1760655461045,6.28259883,108050.0,108040.0,0.07778216]
[1760655467576,5.84142999,108050.0,108040.0,0.07778216]
[1760655467782,6.24924406,108050.0,108040.0,0.07778216]
[1760655470969,6.24924406,108050.0,108030.0,1e-08]
[1760655470970,5.5469919,108040.0,108030.0,1e-08]
[1760655471185,6.62923541,108040.0,108030.0,1e-08]
[1760655471590,6.72668541,108040.0,108030.0,1e-08]
[1760655471791,6.7545363,108040.0,108030.0,1e-08]
[1760655472633,6.7555363,108040.0,108030.0,1e-08]
[1760655474273,6.16059015,108040.0,108030.0,1e-08]
[1760655474522,6.10768634,108040.0,108030.0,1e-08]
[1760655475072,5.3265621,108040.0,108030.0,1e-08]
[1760655475278,5.6665621,108040.0,108030.0,1e-08]
[1760655475456,6.05616065,108040.0,108030.0,1e-08]
[1760655475674,6.14584273,108040.0,108030.0,1e-08]
[1760655475879,5.73802866,108040.0,108030.0,1e-08]
[1760655477685,6.14584273,108040.0,108030.0,1e-08]
[1760655478941,6.05616065,108040.0,108030.0,1e-08]
[1760655480588,5.64834658,108040.0,108030.0,1e-08]
[1760655480830,6.05616065,108040.0,108030.0,1e-08]
[1760655481027,6.08947082,108040.0,108030.0,1e-08]
[1760655481594,6.15670364,108040.0,108030.0,1e-08]
[1760655481793,6.24638572,108040.0,108030.0,1e-08]
[1760655482239,6.15670364,108040.0,108030.0,1e-08]
[1760655483035,6.08947082,108040.0,108030.0,1e-08]
[1760655484745,6.33347082,108040.0,108030.0,1e-08]
[1760655484961,6.35067339,108040.0,108030.0,1e-08]
[1760655485143,6.40070509,108040.0,108030.0,1e-08]
[1760655485384,6.49038717,108040.0,108030.0,1e-08]
[1760655486600,6.457077,108040.0,108030.0,1e-08]
[1760655490306,6.04926293,108040.0,108030.0,1e-08]
[1760655490502,6.36739492,108040.0,108030.0,1e-08]
[1760655491086,6.15671216,108040.0,108030.0,1e-08]
[1760655491310,5.8726816,108040.0,108030.0,1e-08]
[1760655491627,6.05779822,108040.0,108030.0,1e-08]
[1760655492934,6.46561229,108040.0,108030.0,1e-08]
[1760655493142,6.49892953,108040.0,108030.0,1e-08]
[1760655495172,6.77911181,108040.0,108030.0,1e-08]
[1760655495412,6.82914351,108040.0,108030.0,1e-08]
[1760655495560,6.77911181,108040.0,108030.0,1e-08]
[1760655495767,6.37129774,108040.0,108030.0,1e-08]
[1760655495980,6.43107715,108040.0,108030.0,1e-08]
[1760655496191,6.83889122,108040.0,108030.0,1e-08]
[1760655496380,6.43107715,108040.0,108030.0,1e-08]
[1760655496763,6.33511546,108040.0,108030.0,1e-08]
[1760655498039,6.43356546,108040.0,108030.0,1e-08]
[1760655498360,6.33611546,108040.0,108030.0,1e-08]
[1760655498567,6.74292953,108040.0,108030.0,1e-08]
[1760655501394,6.70961229,108040.0,108030.0,1e-08]
[1760655501740,6.79929437,108040.0,108030.0,1e-08]
[1760655503384,6.70124712,108040.0,108030.0,1e-08]
[1760655503585,6.7290945,108040.0,108030.0,1e-08]
[1760655504213,6.68941193,108040.0,108030.0,1e-08]
[1760655505418,6.85427435,108040.0,108030.0,1e-08]
[1760655505969,6.80427484,108040.0,108030.0,1e-08]
[1760655506179,6.85427435,108040.0,108030.0,1e-08]
[1760655506383,6.80427484,108040.0,108030.0,1e-08]
[1760655507138,6.89395692,108040.0,108030.0,1e-08]
[1760655508000,6.80427484,108040.0,108030.0,1e-08]
[1760655509164,6.39611132,108040.0,108030.0,1e-08]
[1760655511362,6.80427484,108040.0,108030.0,1e-08]
[1760655513119,6.77094183,108040.0,108030.0,1e-08]
[1760655515618,6.41282542,108040.0,108030.0,1e-08]
[1760655519367,5.59649838,108040.0,108030.0,1e-08]
[1760655519738,6.41282542,108040.0,108030.0,1e-08]
[1760655526940,6.83729984,108040.0,108030.0,1e-08]
[1760655527954,6.77094183,108040.0,108030.0,1e-08]
[1760655534392,6.83729984,108040.0,108030.0,1e-08]
[1760655535259,6.82009727,108040.0,108030.0,1e-08]
[1760655535466,6.837348,108040.0,108030.0,1e-08]
[1760655535678,6.82009727,108040.0,108030.0,1e-08]
[1760655535852,6.837348,108040.0,108030.0,1e-08]
[1760655536485,6.36282647,108040.0,108030.0,1e-08]
[1760655538450,5.54649943,108040.0,108030.0,1e-08]
[1760655538662,6.41289017,108040.0,108030.0,1e-08]
[1760655539077,6.36282647,108040.0,108030.0,1e-08]
[1760655540647,6.41288952,108040.0,108030.0,1e-08]
[1760655540924,6.91073512,108040.0,108030.0,1e-08]
[1760655541125,6.86067207,108040.0,108030.0,1e-08]
[1760655541356,6.77098999,108040.0,108030.0,1e-08]
[1760655541580,5.59656241,108040.0,108030.0,1e-08]
[1760655541783,6.41288945,108040.0,108030.0,1e-08]
[1760655542404,6.10783031,108040.0,108030.0,1e-08]
[1760655542674,6.09114052,108040.0,108030.0,1e-08]
[1760655544483,1.12101252,108040.0,108030.0,1e-08]
[1760655544693,6.12101252,108040.0,108030.0,1e-08]
[1760655545342,6.46101252,108040.0,108030.0,1e-08]
[1760655546142,6.48103365,108040.0,108030.0,1e-08]